bitfinex/quotes_ETHUSD_20220123
["timestamp","ask_amount","ask_price","bid_price","bid_amount"]
[1642962540244,0.13489814,2423.5,2423.1,0.494]
[1642962540441,0.13489814,2423.5,2423.2,0.165]
[1642962540641,0.13489814,2423.5,2423.3,0.494]
[1642962540843,0.13489814,2423.5,2423.3,0.49485239]
[1642962541045,0.13489814,2423.5,2423.3,0.79485239]
[1642962541451,0.13489814,2423.5,2423.4,12.10337754]
[1642962541646,1.93270363,2424.5,2423.4,11.62117105]
[1642962541852,1.93270363,2424.5,2423.5,1.7351484]
[1642962542052,0.165,2425.0,2423.6,0.25316464]
[1642962542053,2.9128112,2425.0,2423.6,0.25316464]
[1642962542250,2.9128112,2425.0,2423.7,24.17072282]
[1642962542452,0.9587791,2424.9,2423.9,6.177]
[1642962542650,2.9128112,2425.0,2424.0,0.86442]
[1642962542851,2.9128112,2425.0,2424.1,1.52153239]
[1642962543052,2.9128112,2425.0,2424.2,2.38177991]
[1642962543253,3.275887,2425.2,2424.2,2.45321194]
[1642962543456,3.275887,2425.2,2424.2,44.8034834]
[1642962543655,3.215887,2425.2,2424.5,6.177]
[1642962543907,0.3030758,2425.2,2424.7,1.03132]
[1642962544100,0.3030758,2425.2,2424.8,3.12198895]
[1642962544302,2.9128112,2425.6,2425.0,5.2]
[1642962544505,3.86449088,2425.7,2425.1,0.494]
[1642962544506,2.9128112,2425.5,2425.1,0.494]
[1642962544703,7.25261284,2424.5,2424.1,1.3007]
[1642962544898,7.25261284,2424.5,2424.4,3.994]
[1642962546698,7.25261284,2424.5,2424.4,0.494]
[1642962546898,7.25261284,2424.5,2424.4,1.094]
[1642962547669,7.25261284,2424.5,2424.4,0.494]
[1642962547869,0.02683638,2424.4,2424.1,0.337585]
[1642962548066,0.02683638,2424.4,2424.1,0.17325229]
[1642962548067,0.1648,2424.3,2424.1,0.17325229]
[1642962548262,1.27801745,2424.3,2424.1,0.17325229]
[1642962548463,10.36497125,2424.2,2424.1,0.17325229]
[1642962548662,10.52997125,2424.2,2424.1,0.17325229]
[1642962549163,3.115,2424.2,2424.1,0.17325229]
[1642962549662,2.95,2424.2,2424.1,0.17325229]
[1642962550062,5.10981538,2424.2,2424.1,0.17325229]
[1642962550462,5.27481538,2424.2,2424.1,0.17325229]
[1642962550661,5.26822235,2424.2,2424.1,0.17325229]
[1642962551064,8.46822235,2424.2,2424.1,0.17325229]
[1642962551311,5.26822235,2424.2,2424.1,0.17325229]
[1642962551705,3.10840697,2424.2,2424.1,0.17325229]
[1642962551904,5.15916231,2424.2,2424.1,0.17325229]
[1642962552914,0.19941856,2424.2,2424.1,0.10734003]
[1642962553310,0.19941856,2424.2,2424.1,1.34291965]
[1642962553509,0.19941856,2424.2,2424.1,2.13691965]
[1642962553707,0.19941856,2424.2,2424.1,2.43691965]
[1642962553907,0.19941856,2424.2,2424.1,2.71051965]
[1642962554107,4.1,2424.3,2424.1,2.71051965]
[1642962554708,4.1,2424.3,2424.1,2.60403191]
[1642962555157,4.1,2424.3,2424.1,1.60403191]
[1642962555356,4.1,2424.3,2424.1,1.90403191]
[1642962556359,7.25261284,2424.5,2424.2,11.93531055]
[1642962556560,7.25261284,2424.5,2424.3,0.69086264]
[1642962556760,7.25261284,2424.5,2424.3,2.82519165]
[1642962556963,2.92209599,2425.5,2424.5,0.05513089]
[1642962557162,2.92209599,2425.5,2424.8,0.0101962]
[1642962557163,3.93936596,2425.5,2424.8,0.0101962]
[1642962557363,3.93936596,2425.5,2424.9,0.6588]
[1642962557561,3.93936596,2425.5,2424.9,0.73023191]
[1642962557763,0.9894115,2425.1,2424.9,0.73023191]
[1642962557963,0.9894115,2425.1,2424.9,0.49485229]
[1642962558167,2.92209599,2425.5,2424.9,0.49485229]
[1642962558365,2.92209599,2425.3,2424.9,0.22949393]
[1642962558562,1.1880152,2425.6,2424.9,0.22949393]
[1642962558563,2.92209599,2425.4,2424.9,0.22949393]
[1642962559195,2.92209599,2425.4,2424.9,1.74685384]
[1642962559397,2.92209599,2425.4,2424.9,0.52949393]
[1642962559398,1.31082439,2425.2,2424.9,0.52949393]
[1642962559596,1.15085392,2425.1,2424.9,0.52949393]
[1642962559796,1.15085392,2425.1,2424.9,0.22949393]
[1642962559997,1.15085392,2425.1,2424.9,0.22949391]
[1642962560908,4.07294991,2425.1,2424.9,0.00085227]
[1642962561101,1.15085392,2425.1,2424.9,0.00085227]
[1642962561698,0.1648,2425.3,2424.9,0.00085227]
[1642962561699,3.08689599,2425.3,2424.9,0.00085227]
[1642962562003,0.1648,2425.3,2425.0,2.17615991]
[1642962562200,0.1648,2425.3,2425.0,0.95965227]
[1642962562399,0.1648,2425.3,2425.0,1.25965227]
[1642962562659,0.1648,2425.3,2425.0,0.95965227]
[1642962563254,0.9722936,2425.1,2425.0,0.95965227]
[1642962563461,0.02130539,2424.6,2424.4,2.0625584]
[1642962563657,0.02130539,2424.6,2424.5,3.5]
[1642962563859,5.39e-06,2424.6,2424.5,3.844]
[1642962564157,4.1,2425.4,2424.5,3.8807557]
[1642962564357,4.1,2425.4,2424.6,2.73237481]
[1642962564557,4.1,2425.4,2424.9,0.00738726]
[1642962564758,4.1,2425.4,2425.0,0.494]
[1642962564956,0.83791373,2425.9,2425.0,0.494]
[1642962565159,0.83791373,2425.9,2425.1,2.47538403]
[1642962565359,0.83791373,2425.9,2425.2,0.494]
[1642962565559,0.83791373,2425.9,2425.3,0.494]
[1642962565560,1.538547,2425.8,2425.3,0.494]
[1642962565758,3.06795958,2426.0,2425.4,0.494]
[1642962565965,3.06795958,2426.0,2425.5,0.494]
[1642962565966,0.13819997,2426.0,2425.5,0.494]
[1642962566160,0.13819997,2426.0,2425.6,0.494]
[1642962566402,0.13819997,2426.0,2425.7,0.494]
[1642962566604,0.13819997,2426.0,2425.8,0.494]
[1642962566801,0.87309618,2425.9,2425.1,0.1648]
[1642962567001,0.87309618,2425.9,2425.2,0.494]
[1642962567402,1.25483516,2426.0,2425.2,0.494]
[1642962568008,0.13819997,2426.0,2425.2,0.31137435]
[1642962568412,0.13819997,2426.0,2425.3,0.1648]
[1642962568614,1.11314263,2426.0,2425.4,0.494]
[1642962568812,2.92975961,2426.2,2425.5,2.09185956]
[1642962569014,1.16265688,2426.7,2425.6,0.494]
[1642962569211,1.16265688,2426.7,2425.7,0.01109941]
[1642962569411,1.16265688,2426.7,2425.8,0.494]
[1642962569914,0.94202245,2426.6,2425.8,0.494]
[1642962570155,3.19412501,2426.7,2425.8,0.9588]
[1642962570357,7.32715808,2426.7,2425.8,0.794]
[1642962570556,5.26265688,2426.7,2425.8,0.494]
[1642962570756,5.26265688,2426.7,2425.8,0.794]
[1642962571161,5.26265688,2426.7,2425.8,0.494]
[1642962571358,0.86888682,2426.5,2425.8,0.494]
[1642962571559,0.86888682,2426.5,2425.8,0.9588]
[1642962571757,5.26265688,2426.7,2425.8,0.9588]
[1642962571957,5.26265688,2426.7,2425.8,0.6588]
[1642962572564,5.26265688,2426.7,2425.8,0.494]
[1642962572764,1.01411298,2426.6,2425.8,0.494]
[1642962573565,2.02727828,2426.6,2425.8,0.494]
[1642962573815,5.26265688,2426.7,2425.8,0.494]
[1642962574007,4.1,2426.7,2425.8,0.494]
[1642962574212,4.1,2426.7,2425.8,24.464]
[1642962574806,4.1,2426.7,2425.8,0.494]
[1642962575208,4.1,2426.7,2425.9,1.0308]
[1642962575408,4.1,2426.7,2426.0,3.49965404]
[1642962575606,4.1,2426.7,2426.1,0.03120498]
[1642962575810,4.1,2426.7,2426.2,0.494]
[1642962576010,1.1289525,2426.6,2426.3,0.28032586]
[1642962576207,1.1289525,2426.6,2426.4,0.494]
[1642962576411,1.1289525,2426.6,2426.5,0.494]
[1642962576608,4.1,2426.7,2426.5,0.494]
[1642962577653,1.12380741,2426.6,2426.5,0.494]
[1642962578254,0.20492598,2426.7,2426.6,7.9]
[1642962578459,3.91128235,2427.3,2426.7,5.25]
[1642962578659,3.91128235,2427.6,2426.8,0.6588]
[1642962578854,3.91128235,2427.8,2426.8,0.68957784]
[1642962579253,1.15597783,2427.7,2427.0,1.02143133]
[1642962579456,3.91128235,2427.9,2427.1,0.494]
[1642962579657,3.66128235,2428.0,2427.2,0.1647]
[1642962579854,3.66128235,2428.0,2427.3,0.494]
[1642962580053,3.66128235,2428.0,2427.4,0.1647]
[1642962580255,8.60630294,2428.3,2427.5,0.494]
[1642962580456,0.01213557,2428.5,2427.5,0.494]
[1642962580457,4.1,2428.0,2427.5,0.494]
[1642962581312,1.05358414,2427.8,2427.5,0.494]
[1642962581506,4.1,2428.0,2427.5,0.494]
[1642962582622,0.85662216,2427.8,2427.5,0.444]
[1642962582811,4.1,2428.0,2427.5,0.444]
[1642962583015,4.1,2428.0,2427.6,40.15016451]
[1642962583212,0.13819997,2428.9,2427.8,23.97]
[1642962583515,0.01476809,2429.1,2427.9,0.6983538]
[1642962583711,0.01476809,2429.1,2428.2,6.177]
[1642962583712,0.01210636,2429.1,2428.2,6.177]
[1642962583912,0.98204776,2428.9,2428.3,0.1647]
[1642962584108,0.98204776,2428.9,2428.3,0.69483948]
[1642962584710,6.28554424,2429.6,2428.3,0.69483948]
[1642962584910,0.0129413,2429.6,2428.3,0.69483948]
[1642962585181,0.0129413,2429.6,2428.5,6.177]
[1642962585381,4.88910294,2430.0,2428.7,23.97]
[1642962585581,4.88910294,2430.1,2428.9,23.97]
[1642962585778,0.00266173,2430.2,2429.1,6.177]
[1642962585779,0.84216216,2429.8,2429.1,6.177]
[1642962585980,0.84216216,2429.8,2429.2,36.99781045]
[1642962586184,0.84216216,2429.8,2429.2,34.65453487]
[1642962586382,0.84216216,2429.8,2429.2,34.46716451]
[1642962586580,0.04149491,2430.1,2429.2,34.46716451]
[1642962586581,0.04149491,2430.1,2429.2,34.50063537]
[1642962586779,0.04149491,2430.1,2429.2,34.66523537]
[1642962586986,0.04092649,2430.0,2429.2,34.66523537]
[1642962587380,1.25204911,2430.3,2429.2,34.66523537]
[1642962587381,0.04206333,2430.2,2429.2,34.66523537]
[1642962587594,0.04206333,2430.2,2429.4,6.177]
[1642962587804,0.04149491,2430.1,2429.5,0.6585]
[1642962587989,0.0326779,2429.7,2429.5,0.68996933]
[1642962588189,2.1334246,2430.8,2429.7,6.177]
[1642962588190,0.04092649,2430.0,2429.7,6.177]
[1642962588391,0.00266173,2431.2,2429.9,7.9]
[1642962588392,2.12313361,2431.2,2429.9,7.9]
[1642962588593,0.00266173,2431.0,2430.3,6.177]
[1642962588815,0.00266173,2431.0,2430.4,0.494]
[1642962589004,0.00266173,2431.0,2430.5,33.97316451]
[1642962589206,0.01295397,2431.8,2430.6,76.28244178]
[1642962589406,0.00266173,2432.0,2430.6,76.28244178]
[1642962589407,0.00266173,2432.0,2430.9,7.20559]
[1642962589609,0.00266173,2432.0,2431.3,6.177]
[1642962589805,3.44110294,2432.7,2431.4,0.494]
[1642962590006,0.01221759,2432.8,2431.4,0.83160479]
[1642962590204,0.01221759,2432.8,2431.5,34.01027982]
[1642962590505,0.01221759,2432.8,2431.6,7.00783045]
[1642962590905,0.01221759,2432.8,2431.6,6.971]
[1642962591105,1.08696134,2432.2,2431.6,6.971]
[1642962591705,0.93575123,2431.7,2431.6,6.971]
[1642962591910,0.93575123,2431.7,2431.6,0.494]
[1642962592307,0.93575123,2431.7,2431.1,0.494]
[1642962592308,7.88575123,2431.7,2431.1,0.494]
[1642962592762,1.50655307,2431.3,2431.1,0.494]
[1642962592960,0.88149515,2431.2,2431.1,0.494]
[1642962593364,1.04599515,2431.2,2430.6,0.3205]
[1642962593763,0.1645,2431.2,2430.6,0.3205]
[1642962594066,0.1645,2431.2,2430.7,0.494]
[1642962594264,0.20629,2432.2,2430.7,0.53054204]
[1642962594464,2.11288474,2432.2,2430.7,0.494]
[1642962594669,0.16716173,2432.3,2430.7,0.494]
[1642962594863,1.06298223,2431.8,2430.8,1.22864445]
[1642962595064,1.06298223,2431.8,2430.9,0.494]
[1642962595264,1.06298223,2431.8,2430.9,0.6585]
[1642962595566,0.1645,2432.5,2431.1,0.03590824]
[1642962595768,0.17721362,2432.6,2431.3,0.02034194]
[1642962595966,2.11288474,2432.8,2431.5,0.04527885]
[1642962596164,2.11288474,2432.8,2431.6,0.494]
[1642962596402,1.0482354,2432.3,2431.7,0.1643]
[1642962596602,1.0482354,2432.3,2431.8,0.43683262]
[1642962596801,1.0482354,2432.3,2431.9,0.494]
[1642962596802,0.9982354,2432.3,2431.9,0.494]
[1642962597000,0.9982354,2432.3,2432.0,0.494]
[1642962597206,0.9982354,2432.3,2431.6,0.1643]
[1642962597207,0.27639994,2432.9,2432.1,0.494]
[1642962598011,2.04691475,2432.8,2432.1,0.494]
[1642962598408,1.17455983,2432.3,2432.1,0.494]
[1642962598611,1.17455983,2432.3,2431.3,0.1643]
[1642962598612,2.03365156,2432.2,2431.3,0.1643]
[1642962598809,2.03365156,2432.2,2431.4,0.494]
[1642962599009,0.86559002,2431.6,2431.1,34.46716451]
[1642962599209,0.02458269,2431.5,2431.1,0.494]
[1642962599410,0.86559002,2431.6,2431.1,0.494]
[1642962600460,4.96559002,2431.6,2431.1,0.794]
[1642962600658,4.96559002,2431.6,2431.1,1.094]
[1642962600859,4.1,2431.6,2431.1,1.094]
[1642962601057,4.1,2431.6,2431.1,2.094]
[1642962601258,4.1,2431.6,2431.2,0.1645]
[1642962601459,4.1,2431.6,2431.3,0.494]
[1642962602467,5.07475618,2431.6,2431.3,0.494]
[1642962602665,4.1,2431.6,2431.3,0.494]
[1642962602866,4.1,2431.6,2431.4,0.1145]
[1642962603066,4.1,2431.6,2431.5,0.494]
[1642962603906,5.07365146,2431.6,2431.5,0.494]
[1642962604308,1.15897875,2431.5,2430.9,0.494]
[1642962604707,0.03786884,2431.4,2430.9,0.494]
[1642962604907,1.15897875,2431.5,2430.9,0.494]
[1642962605304,1.15897875,2431.5,2430.8,0.1645]
[1642962605305,0.1645,2431.4,2430.8,0.1645]
[1642962605710,0.05116481,2431.3,2430.8,0.1645]
[1642962605908,5.07365146,2431.6,2430.8,0.1645]
[1642962605909,1.37955149,2430.9,2430.8,0.1645]
[1642962606305,2.4627765,2430.9,2430.8,0.1645]
[1642962606907,1.08322501,2430.9,2430.8,0.1645]
[1642962607305,4.1,2431.6,2430.6,0.494]
[1642962607559,0.1645,2431.8,2430.6,0.494]
[1642962607964,1.2180902,2431.2,2430.6,0.494]
[1642962608165,1.2180902,2431.2,2430.6,0.794]
[1642962608363,0.94176469,2430.9,2430.6,0.794]
[1642962608667,0.94176469,2430.9,2430.7,0.1645]
[1642962608865,0.94176469,2430.9,2430.6,1.094]
[1642962609266,0.94176469,2430.9,2430.8,0.28250108]
[1642962612407,5.24176469,2430.9,2430.8,0.18571107]
[1642962612611,0.94176469,2430.9,2430.8,0.18571107]
[1642962613014,0.94176469,2430.9,2429.9,0.494]
[1642962613015,4.9,2430.8,2429.9,0.494]
[1642962613214,1.2442734,2430.3,2429.9,0.494]
[1642962613614,0.02768948,2430.2,2429.9,0.494]
[1642962614012,1.2442734,2430.3,2429.9,0.494]
[1642962614413,1.06020083,2430.2,2429.9,0.494]
[1642962614818,1.06020083,2430.2,2429.3,0.6585]
[1642962614819,0.03328539,2430.1,2429.3,0.6585]
[1642962615054,1.06020083,2430.2,2429.3,0.6585]
[1642962615761,1.08043553,2429.4,2429.3,0.6585]
[1642962616956,1.08043553,2429.4,2429.3,0.494]
[1642962617155,2.24093703,2429.4,2429.2,0.02]
[1642962618060,2.2588135,2429.4,2429.2,0.02]
[1642962620514,2.2588135,2429.4,2429.2,0.0001]
[1642962620716,1.098312,2429.4,2429.2,0.0001]
[1642962621517,8.0645,2429.3,2429.2,0.0001]
[1642962621717,8.27079,2429.3,2429.2,0.0001]
[1642962621918,8.0645,2429.3,2429.2,0.0001]
[1642962622320,0.91165943,2428.9,2428.6,0.02]
[1642962622560,1.03433635,2428.9,2428.6,0.02]
[1642962622762,5.85,2428.8,2427.9,0.514]
[1642962622966,0.03010435,2428.7,2428.0,3.47]
[1642962623167,1.24062635,2428.9,2427.3,1.0]
[1642962623372,1.24062635,2428.9,2427.2,3.6784]
[1642962623373,0.01200476,2428.3,2427.2,3.6784]
[1642962623569,0.37099,2428.2,2427.2,3.6784]
[1642962624063,1.45114819,2427.6,2427.2,3.6784]
[1642962624476,0.1647,2427.5,2427.2,3.6784]
[1642962624665,0.04052813,2427.4,2427.2,3.6784]
[1642962624865,0.04052813,2427.4,2426.8,0.02]
[1642962625170,0.02987966,2427.2,2426.8,0.02]
[1642962625362,6.01219279,2426.9,2426.8,0.02]
[1642962625565,8.49935107,2426.9,2426.8,0.02]
[1642962626421,9.56296807,2426.9,2426.8,0.02]
[1642962627024,5.89966807,2426.9,2426.8,0.02]
[1642962627228,0.1648,2427.2,2426.8,6.47]
[1642962627429,0.1648,2427.5,2426.8,7.03420256]
[1642962627628,3.8673,2428.0,2426.8,7.03420256]
[1642962627629,2.1207286,2427.9,2426.8,7.03420256]
[1642962628025,0.02801812,2426.9,2426.8,7.03420256]
[1642962628225,0.02801812,2426.9,2426.8,0.58420256]
[1642962628425,0.02801812,2426.9,2426.8,2.18420256]
[1642962628730,0.02801812,2426.9,2426.8,1.18420256]
[1642962631957,4.12801812,2426.9,2426.8,1.18420256]
[1642962633564,4.12801812,2426.9,2426.8,0.514]
[1642962633813,4.12801812,2426.9,2426.8,0.02]
[1642962634415,4.29281812,2426.9,2426.8,0.02]
[1642962634612,6.38636246,2426.9,2426.8,0.02]
[1642962635215,6.59265246,2426.9,2426.8,0.02]
[1642962635417,7.51895246,2426.9,2426.8,0.02]
[1642962635620,7.51895246,2426.9,2426.1,0.02]
[1642962635621,9.63968106,2426.9,2426.1,0.02]
[1642962635823,3.35550444,2426.8,2426.1,0.02]
[1642962636022,0.20629,2426.7,2426.1,0.02]
[1642962636221,0.21071959,2426.6,2426.1,0.02]
[1642962636419,0.86250329,2426.5,2426.1,0.02]
[1642962636624,0.20257719,2426.4,2426.1,0.02]
[1642962637017,0.1648,2426.4,2426.1,0.02]
[1642962637864,2.2784216,2426.4,2426.1,0.02]
[1642962638064,0.19262909,2426.4,2426.1,0.02]
[1642962638260,2.26318345,2426.4,2426.1,0.02]
[1642962638461,0.02782909,2426.4,2426.1,0.02]
[1642962638662,2.06133564,2426.4,2426.1,0.02]
[1642962638861,2.06797371,2426.4,2426.1,0.02]
[1642962639462,2.23277371,2426.4,2426.1,0.02]
[1642962640067,0.19262909,2426.4,2426.1,0.02]
[1642962642409,4.29262909,2426.4,2426.1,0.02]
[1642962642912,2.13132753,2426.3,2426.1,0.02]
[1642962643114,4.29262909,2426.4,2426.1,0.02]
[1642962643115,5.6148,2426.2,2426.1,0.02]
[1642962643715,5.82109,2426.2,2426.1,0.02]
[1642962643916,5.82109,2426.2,2425.0,0.02]
[1642962644118,1.29467848,2425.3,2425.0,0.02]
[1642962644316,1.09675255,2425.1,2425.0,0.02]
[1642962646368,0.94391985,2425.1,2425.0,0.02]
[1642962647369,0.1648,2425.6,2425.0,0.02]
[1642962647570,0.1648,2426.0,2425.0,0.02]
[1642962647769,2.1207286,2426.0,2425.1,0.494]
[1642962647971,3.77639997,2426.1,2425.1,0.494]
[1642962648167,3.77639997,2426.1,2425.1,0.794]
[1642962648168,0.13819997,2426.1,2425.1,0.794]
[1642962648468,0.872961,2425.7,2425.1,0.794]
[1642962649106,0.872961,2425.7,2425.1,0.494]
[1642962650309,2.07265938,2425.6,2425.0,0.02]
[1642962650511,0.1648,2425.5,2425.0,0.02]
[1642962651109,1.44172375,2425.1,2425.0,0.02]
[1642962651310,2.42912585,2425.1,2425.0,0.02]
[1642962651511,2.42912585,2425.1,2424.5,0.464]
[1642962651914,2.32754942,2425.0,2424.3,0.02]
[1642962652121,2.33980349,2425.0,2424.3,0.02]
[1642962652576,2.29778267,2425.0,2424.3,0.02]
[1642962653166,2.50407267,2425.0,2424.3,0.02]
[1642962653665,0.38334407,2425.0,2424.3,0.02]
[1642962653872,1.866961,2425.1,2424.3,0.02]
[1642962654266,1.866961,2425.1,2424.3,0.09006225]
[1642962654672,0.26043725,2425.1,2424.3,0.09006225]
[1642962654872,0.26043725,2425.1,2424.4,0.494]
[1642962655071,0.26043725,2425.1,2424.5,0.00365386]
[1642962655267,0.26043725,2425.1,2424.6,0.494]
[1642962655470,0.26043725,2425.1,2424.7,0.494]
[1642962655669,0.26043725,2425.1,2424.8,0.494]
[1642962656167,0.26043725,2425.1,2424.8,0.794]
[1642962656411,0.26043725,2425.1,2424.8,1.094]
[1642962656612,0.26043725,2425.1,2424.8,0.494]
[1642962657423,1.73904933,2425.1,2424.8,0.494]
[1642962657616,0.26043725,2425.1,2424.8,0.494]
[1642962657816,1.2285634,2425.1,2424.8,0.494]
[1642962658720,1.2285634,2425.1,2424.3,0.514]
[1642962659019,3.41418914,2425.1,2424.3,0.514]
[1642962659217,1.3933634,2425.1,2424.3,0.514]
[1642962659619,245.94395417,2424.0,2423.8,3.8497]
[1642962659818,242.28471902,2424.0,2423.7,5.38769291]
[1642962660084,242.28471902,2424.0,2423.8,1.3]
[1642962660268,242.28471902,2424.0,2423.9,0.494]
[1642962660666,242.28471902,2424.0,2423.9,0.794]
[1642962662071,242.28471902,2424.0,2423.9,1.794]
[1642962663072,242.31163968,2424.0,2423.9,1.794]
[1642962667315,242.31163968,2424.0,2423.9,25.83391483]
[1642962667316,205.58493928,2424.0,2423.9,25.83391483]
[1642962667576,56.88235661,2424.0,2423.9,26.86546483]
[1642962667771,54.88235661,2424.0,2423.9,27.03046483]
[1642962667972,8.57134314,2424.0,2423.9,27.03046483]
[1642962668170,8.57134314,2424.0,2423.9,30.53912324]
[1642962668370,1.14466635,2425.3,2424.0,7.95]
[1642962668572,2.15279146,2425.6,2424.3,0.06737941]
[1642962668773,2.15279146,2425.6,2424.4,0.494]
[1642962668971,2.15279146,2425.6,2424.5,0.494]
[1642962669371,1.26519567,2425.8,2424.5,0.56391483]
[1642962669771,1.10685498,2425.4,2424.5,0.56391483]
[1642962670176,0.1648,2426.0,2424.6,0.06991483]
[1642962670375,2.51840236,2426.0,2424.7,0.76318122]
[1642962670577,2.51840236,2426.0,2424.7,8.24018122]
[1642962670774,2.51840236,2426.0,2424.8,0.06991483]
[1642962670975,2.51840236,2426.4,2424.9,0.62219662]
[1642962671175,0.1648,2426.8,2424.9,0.494]
[1642962671176,1.0164491,2426.2,2424.9,0.494]
[1642962671432,2.51840236,2426.7,2424.9,0.494]
[1642962671433,1.44046326,2426.5,2425.1,1.12152138]
[1642962671630,2.51840236,2426.4,2425.4,6.177]
[1642962671826,10.87235556,2427.1,2425.5,0.57795467]
[1642962671827,2.51840236,2426.9,2425.5,0.57795467]
[1642962672030,3.03245911,2427.3,2425.5,0.57795467]
[1642962672031,2.51840236,2427.0,2425.7,6.177]
[1642962672225,4.1,2426.5,2425.8,0.75213167]
[1642962672424,4.1,2426.5,2426.0,0.09732222]
[1642962672631,4.1,2426.5,2426.1,0.494]
[1642962672826,4.1,2426.5,2426.2,0.494]
[1642962673027,0.03501347,2426.4,2426.3,0.494]
[1642962673232,0.03501347,2426.4,2426.3,0.794]
[1642962673736,0.03501347,2426.4,2425.8,1.0]
[1642962673737,2.41975009,2426.4,2425.8,1.0]
[1642962673930,2.41975009,2426.4,2425.8,0.494]
[1642962673931,1.2662468,2425.9,2425.8,0.494]
[1642962674131,2.09414037,2425.9,2425.8,0.494]
[1642962674529,0.82789357,2425.9,2425.8,0.494]
[1642962675365,0.82789357,2425.9,2425.8,0.794]
[1642962675563,0.82789357,2425.9,2425.8,1.094]
[1642962675769,0.82789357,2425.9,2425.8,0.794]
[1642962675963,0.82789357,2425.9,2425.8,0.494]
[1642962677169,1.13456832,2425.4,2425.2,1.094]
[1642962677364,1.13456832,2425.4,2425.2,0.494]
[1642962677365,4.65015743,2425.3,2425.2,0.494]
[1642962677566,0.90015743,2425.3,2425.2,0.794]
[1642962677769,0.90015743,2425.3,2425.2,0.494]
[1642962681632,0.03472981,2425.9,2425.2,0.794]
[1642962681833,0.03472981,2425.9,2425.3,0.0743305]
[1642962682031,0.03472981,2425.9,2425.4,0.494]
[1642962682435,0.03472981,2425.9,2425.5,0.06991483]
[1642962682666,0.21350393,2425.3,2425.2,0.03467432]
[1642962683066,0.24789319,2425.3,2425.2,0.03467432]
[1642962683266,0.89611467,2425.9,2425.2,5.50458915]
[1642962683467,0.89611467,2425.9,2425.3,0.6589]
[1642962683671,0.89611467,2425.9,2425.3,1.69211863]
[1642962683867,2.85525159,2426.4,2425.5,0.06351245]
[1642962684068,2.85525159,2426.6,2425.6,0.494]
[1642962684270,2.85525159,2426.6,2425.7,0.494]
[1642962684478,2.86783513,2426.7,2425.7,0.59888871]
[1642962684669,2.99345156,2426.8,2425.8,3.5]
[1642962684873,2.99345156,2426.8,2425.9,0.55711496]
[1642962684874,0.13819997,2426.8,2425.9,0.55711496]
[1642962685068,0.13819997,2426.8,2425.9,1.90270809]
[1642962685267,1.37339408,2426.8,2426.0,0.06976763]
[1642962685466,1.37339408,2426.8,2426.1,0.494]
[1642962685868,1.37339408,2426.8,2426.2,0.06976763]
[1642962686069,1.37339408,2426.8,2425.6,0.06976763]
[1642962686070,3.63969563,2426.8,2425.6,0.06976763]
[1642962686313,1.18706656,2426.4,2425.7,3.994]
[1642962686707,3.02005159,2426.7,2425.7,0.494]
[1642962686911,2.85525159,2426.7,2425.7,0.494]
[1642962687110,2.85525159,2426.7,2425.7,0.59753575]
[1642962687310,0.13819997,2426.8,2425.7,0.59753575]
[1642962687510,2.85525159,2426.9,2425.7,0.89753575]
[1642962687715,4.06343689,2427.0,2425.7,24.86753575]
[1642962687914,1.2081853,2427.0,2425.8,0.03520946]
[1642962688114,2.85525159,2427.1,2425.9,0.494]
[1642962688315,1.06931992,2426.8,2426.0,24.00337238]
[1642962688512,1.06931992,2426.8,2426.1,1.494]
[1642962688711,1.10903839,2426.4,2426.1,1.494]
[1642962688920,1.10903839,2426.4,2426.1,0.794]
[1642962689619,2.64739236,2426.4,2426.1,0.23111044]
[1642962689816,2.36622627,2426.3,2426.1,0.23111044]
[1642962690263,2.64739236,2426.4,2426.1,0.23111044]
[1642962690665,2.31657573,2426.3,2426.1,0.23111044]
[1642962690866,2.64739236,2426.4,2426.1,0.23111044]
[1642962691666,2.3314352,2426.3,2426.1,0.23111044]
[1642962691867,2.64739236,2426.4,2426.1,0.23111044]
[1642962693476,2.31657573,2426.3,2425.5,0.494]
[1642962693676,1.28760077,2425.7,2425.5,0.494]
[1642962693921,0.99420669,2425.6,2425.5,0.494]
[1642962695119,0.99420669,2425.6,2425.5,0.794]
[1642962695325,3.31384664,2425.6,2424.7,10.6458]
[1642962695521,3.31384664,2425.6,2424.9,3.5]
[1642962695720,3.02005159,2426.1,2424.9,3.5]
[1642962695721,1.06879863,2425.1,2424.9,0.054]
[1642962696520,2.92638689,2425.8,2424.9,0.12376763]
[1642962696726,0.1648,2425.7,2424.9,0.12376763]
[1642962697577,0.89353961,2425.1,2424.9,0.12376763]
[1642962697976,0.03300176,2425.0,2424.9,0.054]
[1642962704319,2.83300176,2425.0,2424.9,0.054]
[1642962704720,0.03300176,2425.0,2424.9,0.054]
[1642962705982,3.17124816,2425.0,2424.5,0.494]
[1642962706181,1.08689076,2424.7,2424.5,0.494]
[1642962706378,1.08689076,2424.7,2424.6,0.06976763]
[1642962706779,3.33604816,2425.0,2424.6,0.06976763]
[1642962706982,0.91210176,2425.0,2424.6,0.06976763]
[1642962707381,0.98649226,2424.7,2424.6,0.06976763]
[1642962707980,1.01932364,2424.7,2424.6,0.06976763]
[1642962708182,0.03283138,2424.7,2424.5,0.46376763]
[1642962708379,0.03283138,2424.7,2424.6,0.06976763]
[1642962709627,0.03283138,2424.7,2424.5,0.46376763]
[1642962709831,1.09877833,2424.6,2424.5,0.46376763]
[1642962711324,1.09877833,2424.6,2424.0,0.6]
[1642962711525,1.26541443,2424.3,2424.1,0.3]
[1642962711725,1.26541443,2424.3,2424.0,0.62226209]
[1642962712324,1.26541443,2424.3,2423.9,0.494]
[1642962712325,1.26541443,2424.3,2423.9,1.12316898]
[1642962712578,0.9166269,2424.2,2424.0,0.0696208]
[1642962712766,1.26541443,2424.3,2424.0,0.0696208]
[1642962712970,0.02388873,2424.2,2424.0,0.0696208]
[1642962713368,0.02388873,2424.2,2423.9,1.094]
[1642962713769,0.02388873,2424.2,2424.0,0.0696208]